bitfinex/quotes_ETHUSD_20240924
["timestamp","ask_amount","ask_price","bid_price","bid_amount"]
[1727207027038,0.79270607,2647.1,2647.0,3.77786]
[1727207027233,1.19032176,2647.2,2647.0,3.77786]
[1727207027446,0.79270627,2647.1,2647.0,3.77786]
[1727207027597,1.19032176,2647.2,2647.0,3.77786]
[1727207028525,1.19032176,2647.1,2647.0,3.77786]
[1727207029201,1.19032176,2647.1,2646.8,3.77804]
[1727207029406,0.79296535,2647.0,2646.8,4.3779854]
[1727207029734,0.79296535,2646.9,2646.8,4.3779854]
[1727207030415,1.19032176,2647.0,2646.8,4.3779854]
[1727207030832,0.7930929,2646.9,2646.8,4.3779854]
[1727207031723,0.79327878,2646.9,2646.8,4.3779854]
[1727207031914,0.79327878,2646.9,2646.8,4.50070848]
[1727207033222,0.79327878,2646.9,2646.8,3.90076308]
[1727207033429,1.19032176,2647.0,2646.8,3.90076308]
[1727207034716,1.19032176,2647.0,2646.8,0.12272308]
[1727207034906,1.19032176,2646.9,2646.8,0.12272308]
[1727207035307,1.19032176,2647.0,2646.8,0.12272308]
[1727207035510,1.19032176,2646.9,2646.8,0.12272308]
[1727207036011,1.58669298,2647.1,2646.8,0.12272308]
[1727207036012,1.19032176,2647.0,2646.8,0.12272308]
[1727207036606,1.19032176,2646.9,2646.8,0.12272308]
[1727207039758,1.19032176,2646.9,2646.6,3.77841]
[1727207039961,0.79340803,2646.8,2646.6,4.7618804]
[1727207040506,0.79340803,2646.8,2646.1,3.0]
[1727207040507,1.19032176,2646.7,2646.3,0.8332]
[1727207040664,1.19032176,2646.7,2646.2,3.77891]
[1727207040665,1.58669298,2646.6,2646.2,3.77891]
[1727207040954,0.79351234,2646.3,2646.2,3.77891]
[1727207042356,0.79351234,2646.4,2646.2,3.77891]
[1727207042558,0.79351234,2646.3,2646.2,3.77891]
[1727207043316,1.19025532,2646.5,2646.2,3.77891]
[1727207043317,0.79351234,2646.4,2646.2,3.77891]
[1727207044162,1.19025532,2646.5,2646.2,3.77891]
[1727207044163,0.79351234,2646.3,2646.2,3.77891]
[1727207044383,0.79351234,2646.4,2646.2,3.77891]
[1727207045968,0.79351234,2646.4,2646.1,8.3914]
[1727207047036,0.79351234,2646.4,2646.2,0.12157914]
[1727207047753,0.79351234,2646.4,2646.2,3.90054914]
[1727207048251,0.79351234,2646.5,2646.4,3.77871]
[1727207048648,0.79351234,2646.6,2646.4,3.90021312]
[1727207052980,0.79351234,2646.6,2646.4,0.12150312]
[1727207053782,0.79351234,2646.5,2646.4,0.12150312]
[1727207053983,5.14830911,2646.5,2646.0,3.77918]
[1727207054309,0.79351234,2646.4,2646.0,3.77918]
[1727207054999,4.57224234,2646.4,2646.0,3.77918]
[1727207055577,3.77938,2646.0,2645.6,0.819]
[1727207055923,3.77938,2646.0,2645.5,3.77996]
[1727207055924,1.31591174,2645.9,2645.5,3.77999]
[1727207056090,0.79351234,2645.8,2645.5,3.77999]
[1727207056278,0.79351234,2645.8,2645.4,0.8573912]
[1727207056675,0.79351234,2645.8,2645.4,4.6375012]
[1727207056877,3.77952,2645.9,2645.5,3.77999]
[1727207056878,4.57303234,2645.9,2645.5,3.77999]
[1727207057078,4.57303234,2645.9,2645.4,0.8573912]
[1727207057079,4.57303234,2645.9,2645.4,4.6375012]
[1727207057495,8.35257234,2645.9,2645.4,0.8573912]
[1727207057777,4.57303234,2645.9,2645.4,4.6375312]
[1727207058210,8.35257234,2645.9,2645.4,4.6375312]
[1727207059404,7.55906,2645.9,2645.4,4.6375312]
[1727207059729,3.77952,2645.9,2645.4,4.6375312]
[1727207060131,3.77952,2645.9,2645.4,1.69916232]
[1727207060430,3.77957,2645.8,2645.4,0.0383912]
[1727207062039,3.77957,2645.8,2645.5,0.11427509]
[1727207062992,1.44461399,2646.1,2645.5,3.89424509]
[1727207062993,3.77944,2645.9,2645.5,3.89424509]
[1727207064102,3.77944,2645.9,2645.5,0.11427509]
[1727207065194,3.77944,2645.9,2645.5,1.03003112]
[1727207065390,4.57272234,2646.1,2645.6,0.819]
[1727207065590,4.57253234,2646.2,2645.6,4.70891999]
[1727207065803,4.57253234,2646.2,2645.7,3.77962]
[1727207066203,4.57253234,2646.2,2645.8,0.11007394]
[1727207066420,4.57253234,2646.2,2645.7,3.77962]
[1727207066624,4.57253234,2646.2,2645.9,0.11003592]
[1727207066836,4.57237234,2646.3,2645.8,3.88956394]
[1727207067033,3.77886,2646.3,2646.0,0.1099979]
[1727207067252,4.57237234,2646.3,2645.9,0.11029685]
[1727207067450,4.57237234,2646.3,2646.1,0.11022082]
[1727207067743,3.77867,2646.5,2646.2,0.1101828]
[1727207067744,0.79351234,2646.5,2646.2,0.1101828]
[1727207067953,3.77858,2646.5,2646.2,0.1101828]
[1727207068122,8.35078234,2646.5,2646.0,3.77915]
[1727207068448,4.57222234,2646.4,2646.1,0.11022082]
[1727207068814,4.57222234,2646.4,2645.9,4.59839]
[1727207069258,4.57222234,2646.4,2646.0,0.11052922]
[1727207069753,0.79351234,2646.4,2646.0,3.77928]
[1727207070252,4.57229234,2646.4,2646.1,0.11049121]
[1727207070593,0.79351234,2646.4,2645.9,0.819]
[1727207070744,0.79351234,2646.4,2646.2,0.11045319]
[1727207070913,4.57227234,2646.4,2645.9,4.59835]
[1727207071248,0.79351234,2646.4,2646.0,0.11052922]
[1727207072411,0.79351234,2646.4,2646.0,3.88976922]
[1727207074659,0.79351234,2646.3,2646.0,3.88976922]
[1727207074972,0.79351234,2646.4,2646.0,3.88976922]
[1727207076247,0.79351234,2646.3,2646.0,3.88976922]
[1727207079752,0.79351234,2646.3,2646.0,0.11052922]
[1727207080060,4.57248234,2646.3,2646.0,0.11052922]
[1727207080247,0.79351234,2646.3,2646.0,0.11052922]
[1727207080438,4.57251234,2646.2,2646.0,0.11052922]
[1727207080638,4.57251234,2646.2,2645.8,3.77956]
[1727207080872,4.57251234,2646.2,2646.1,0.11044375]
[1727207081063,5.52666411,2646.2,2645.7,0.7586]
[1727207081267,4.57251234,2646.2,2646.1,0.11046273]
[1727207081440,4.57251234,2646.2,2645.7,4.53821]
[1727207081844,4.57251234,2646.2,2645.8,0.11057679]
[1727207082048,4.57251234,2646.2,2645.7,4.53821]
[1727207082346,4.57251234,2646.2,2645.8,0.11057679]
[1727207082569,4.57251234,2646.2,2645.7,4.53821]
[1727207082747,4.57251234,2646.2,2645.9,0.11053877]
[1727207082947,4.57251234,2646.2,2645.8,0.11057679]
[1727207083178,4.57251234,2646.2,2645.7,4.53821]
[1727207083378,4.57251234,2646.2,2645.9,0.11053877]
[1727207083569,0.79351234,2646.1,2645.8,3.89013679]
[1727207083771,0.79351234,2646.1,2646.0,0.11050075]
[1727207083949,0.79351234,2646.1,2645.9,0.11053877]
[1727207084147,0.79351234,2646.1,2646.0,0.11050075]
[1727207084358,0.79351234,2646.1,2645.8,3.77956]
[1727207084556,0.79351234,2646.1,2646.0,0.11050075]
[1727207084779,0.79351234,2646.1,2645.9,0.11053877]
[1727207084981,0.79351234,2646.1,2646.0,0.11050075]
[1727207085488,0.79351234,2646.1,2645.8,3.77956]
[1727207085644,0.79351234,2646.1,2646.0,0.11050075]
[1727207085846,0.79351234,2646.1,2645.9,0.11053877]
[1727207086202,0.79351234,2646.1,2646.0,0.11050075]
[1727207086203,4.96939532,2646.1,2646.0,0.11050075]
[1727207086377,5.78367345,2646.1,2646.0,0.11050075]
[1727207086575,5.78367345,2646.1,2645.7,0.7586]
[1727207086576,6.18011111,2646.1,2645.7,0.7586]
[1727207086873,0.7925887,2645.9,2645.7,0.7586]
[1727207089081,4.5722287,2645.8,2645.5,0.7586]
[1727207089434,0.79270886,2645.6,2645.4,0.0383912]
[1727207089562,0.79270886,2645.5,2645.4,0.0383912]
[1727207089967,0.79278824,2645.5,2645.4,0.0383912]
[1727207092096,0.79278824,2645.5,2645.4,0.14929094]
[1727207095207,0.79278824,2645.6,2645.4,0.14929094]
[1727207095510,0.79278824,2645.5,2645.4,0.14929094]
[1727207096702,1.18888305,2645.5,2645.4,0.14929094]
[1727207097022,0.79267282,2645.5,2645.4,0.14929094]
[1727207097997,1.18888305,2645.5,2645.4,0.14929094]
[1727207098878,4.96888305,2645.5,2645.4,0.14929094]
[1727207099398,3.78,2645.5,2645.4,0.14929094]
[1727207099708,4.96941723,2645.5,2645.4,0.14929094]
[1727207100376,3.78,2645.5,2645.4,0.14929094]
[1727207101169,4.96952475,2645.5,2645.4,0.14929094]
[1727207105486,1.18952475,2645.5,2645.4,0.98029094]
[1727207105687,0.79275129,2645.5,2645.4,5.38123169]
[1727207105883,0.79275129,2645.6,2645.4,4.76043094]
[1727207107215,0.79275129,2645.6,2645.5,3.78]
[1727207107419,0.79275129,2645.9,2645.6,4.61086]
[1727207107575,0.79275129,2645.9,2645.7,1.44738653]
[1727207107776,0.79275129,2645.8,2645.7,0.11094702]
[1727207108208,0.79275129,2645.9,2645.7,3.89065702]
[1727207108902,0.79275129,2645.9,2645.7,2.60082681]
[1727207109103,0.79275129,2645.9,2645.7,1.15344028]
[1727207109275,0.79275129,2645.9,2645.7,0.11094702]
[1727207109786,0.79275129,2645.9,2645.8,0.11090899]
[1727207109991,0.79275129,2645.9,2645.8,4.72147899]
[1727207110187,0.79275129,2646.0,2645.9,4.61043]
[1727207110418,0.79275129,2646.1,2645.9,6.67467308]
[1727207110628,0.79275129,2646.1,2645.9,6.78554405]
[1727207110823,0.79275129,2646.1,2645.9,5.33815752]
[1727207111696,0.79275129,2646.1,2645.9,0.11087097]
[1727207111697,0.79275129,2646.0,2645.9,0.11087097]
[1727207111903,4.96880475,2646.0,2645.9,0.11087097]
[1727207112104,4.96880475,2646.0,2645.7,0.831]
[1727207112105,3.77928,2646.0,2645.7,0.831]
[1727207112291,5.36597298,2646.0,2645.9,0.10808877]
[1727207112493,5.36597298,2646.0,2645.8,0.1081268]
[1727207112692,5.36597298,2646.0,2645.7,0.831]
[1727207112693,1.18892111,2645.9,2645.7,0.831]
[1727207112935,0.79261342,2645.8,2645.7,0.831]
[1727207114115,0.79261342,2645.9,2645.7,0.831]
[1727207114906,0.79261342,2645.8,2645.7,0.831]
[1727207115537,0.79261342,2645.8,2645.5,0.831]
[1727207115848,0.79261342,2645.7,2645.5,4.61098]
[1727207116050,0.79261342,2645.8,2645.5,4.61098]
[1727207116342,0.79261342,2645.8,2645.5,5.45391812]
[1727207117232,0.79261342,2645.9,2645.6,3.77985]
[1727207117434,0.79261342,2645.9,2645.7,4.61067]
[1727207117813,0.79271125,2646.0,2645.8,3.77957]
[1727207118109,0.79271125,2646.0,2645.9,4.988387]
[1727207118330,0.79271125,2646.1,2645.9,4.988387]
[1727207118533,0.79271125,2646.1,2646.0,7.82079266]
[1727207118745,0.79271125,2646.2,2646.1,3.77914]
[1727207118908,0.79271125,2646.2,2646.0,5.80809597]
[1727207119243,0.79271125,2646.2,2646.0,5.80802597]
[1727207119607,0.79271125,2646.2,2646.0,4.61021]
[1727207120327,0.79271125,2646.2,2646.1,3.77914]
[1727207121563,0.79271125,2646.2,2646.0,0.831]
[1727207122253,0.79271125,2646.2,2646.1,0.10802223]
[1727207122254,1.18892111,2646.2,2646.1,0.10802223]
[1727207122906,5.36557298,2646.3,2645.9,3.77929]
[1727207122907,4.96780111,2646.3,2645.9,3.77929]
[1727207123106,0.79253076,2646.1,2645.9,3.77929]
[1727207125118,0.79253076,2646.1,2645.8,4.60975]
[1727207129341,0.79253076,2646.1,2645.8,0.8302]
[1727207130722,0.79253076,2646.1,2645.8,4.60974]
[1727207132932,0.79253076,2646.1,2645.8,0.8302]
[1727207133731,0.79253076,2646.1,2645.8,4.6097]
[1727207134046,1.58669298,2646.4,2645.9,3.77943]
[1727207134248,1.58669298,2646.3,2645.9,3.77943]
[1727207134664,1.58669298,2646.4,2646.0,3.77928]
[1727207134863,5.36541298,2646.4,2646.1,0.8302]
[1727207136575,1.58669298,2646.4,2646.1,0.8302]
[1727207137080,1.58669298,2646.4,2646.2,0.10802218]
[1727207137445,5.36542298,2646.4,2646.2,0.10802218]
[1727207138079,3.77873,2646.4,2646.2,0.10802218]
[1727207138277,5.36542298,2646.4,2646.2,0.10802218]
[1727207139567,3.77873,2646.4,2646.2,0.10802218]
[1727207139780,5.36542298,2646.4,2646.2,0.10802218]
[1727207140492,3.77886,2646.3,2646.2,0.10802218]
[1727207140699,3.77886,2646.3,2645.9,0.7946]
[1727207140895,3.77886,2646.3,2646.2,0.10795102]
[1727207141097,3.77886,2646.3,2645.9,4.574]
[1727207141383,6.10005357,2646.4,2645.9,4.574]
[1727207141590,3.77888,2646.3,2646.0,0.1009642]
[1727207142176,1.58669298,2646.4,2646.0,0.1009642]
[1727207142376,1.58669298,2646.4,2646.0,3.8801742]
[1727207142577,1.58669298,2646.4,2646.2,0.7946]
[1727207142790,1.18882894,2646.3,2646.2,0.7946]
[1727207142968,1.58669298,2646.4,2646.2,0.7946]
[1727207143501,5.36542298,2646.4,2646.2,0.7946]
[1727207143804,3.77886,2646.3,2645.9,0.7946]
[1727207144024,0.79263522,2646.1,2645.9,0.7946]
[1727207144171,0.79263522,2646.0,2645.9,0.7946]
[1727207144361,0.79263522,2646.0,2645.9,1.252003]
[1727207146181,0.79263522,2646.1,2646.0,3.77928]
[1727207146482,0.7927955,2646.4,2646.3,4.57346]
[1727207146695,0.7927955,2646.5,2646.3,4.64902883]
[1727207147006,1.18895284,2646.6,2646.4,4.62151288]
[1727207147007,0.7927955,2646.6,2646.4,4.62151288]
[1727207147221,0.7927955,2646.6,2646.5,3.77857]
[1727207147378,1.18895284,2646.7,2646.5,3.77857]
[1727207147379,0.7927955,2646.7,2646.6,3.77843]
[1727207147581,0.79268823,2646.7,2646.6,4.69781429]
[1727207147771,0.792683,2646.7,2646.6,4.69781429]
[1727207148308,0.792683,2646.7,2646.6,4.77337496]
[1727207148486,0.792683,2646.8,2646.6,4.69781429]
[1727207148679,0.792683,2646.8,2646.7,5.81336577]
[1727207149003,0.792683,2646.8,2646.7,2.03508577]
[1727207149211,0.792683,2646.8,2646.7,0.7946]
[1727207152182,0.792683,2646.8,2646.7,0.89167224]
[1727207155284,0.792683,2646.9,2646.7,0.89167224]
[1727207155613,0.792683,2646.9,2646.7,4.66992224]
[1727207156000,0.792683,2646.8,2646.7,4.66992224]
[1727207156197,0.792683,2646.8,2646.7,5.5223154]
[1727207156505,0.792683,2646.9,2646.7,5.5223154]
[1727207158108,0.792683,2646.8,2646.7,4.66995224]
[1727207158708,0.792683,2646.8,2646.7,0.89167224]
[1727207159224,0.792683,2646.9,2646.7,0.89167224]
[1727207159385,0.792683,2646.8,2646.7,0.89167224]
[1727207160395,0.792683,2646.8,2646.7,0.09707224]
[1727207160625,5.54304442,2646.8,2646.7,0.09707224]
[1727207160826,4.35409158,2646.8,2646.3,3.77885]
[1727207161133,0.79210307,2646.5,2646.3,7.55761]
[1727207161424,5.36483298,2646.8,2646.3,7.55761]
[1727207161425,0.79210307,2646.6,2646.4,3.87537448]
[1727207162010,0.79210307,2646.7,2646.4,3.87537448]
[1727207162193,0.79210307,2646.6,2646.4,3.87537448]
[1727207163524,0.79210307,2646.6,2646.4,3.87530448]
[1727207163701,0.79210307,2646.6,2646.5,0.7507]
[1727207163900,0.79210307,2646.7,2646.5,4.52927]
[1727207164091,0.79210307,2646.8,2646.6,3.77843]
[1727207164289,0.79210307,2646.8,2646.6,3.95064584]
[1727207164491,0.79210307,2646.8,2646.7,4.93965992]
[1727207164702,0.79210307,2646.8,2646.7,3.87489687]
[1727207165427,0.79210307,2646.9,2646.7,3.87489687]
[1727207165931,0.79210307,2646.9,2646.8,3.77814]
[1727207166092,0.79210307,2646.9,2646.8,3.87471887]
[1727207167249,0.79210307,2646.9,2646.8,4.76567599]
[1727207167402,0.79210307,2647.1,2646.9,3.778]
[1727207167601,0.79210307,2647.1,2646.8,4.69010887]
[1727207167899,0.79210307,2647.1,2646.9,0.09653615]
[1727207169439,0.79210307,2647.1,2646.9,3.87452615]
[1727207169598,0.79210307,2647.1,2646.9,0.09653615]
[1727207171704,0.79210307,2647.0,2646.7,4.27818]
[1727207171892,0.79210307,2647.0,2646.7,8.05639]
[1727207172258,0.79210307,2647.1,2646.8,3.77806]
[1727207172733,0.79210307,2647.1,2647.0,0.8154]
[1727207173034,0.79210307,2647.5,2647.3,0.8154]
[1727207173331,0.79210307,2647.6,2647.4,3.77729]
[1727207173538,0.79210307,2647.6,2647.3,4.59276]
[1727207173706,0.79210307,2647.6,2647.4,3.77728]
[1727207174038,0.79210307,2647.6,2647.3,4.59283]
[1727207174206,0.79210307,2647.6,2647.3,0.8154]
[1727207174530,3.77715,2647.5,2647.1,4.59301]
[1727207174894,3.77715,2647.5,2647.1,0.8154]
[1727207175490,1.52648514,2647.6,2647.1,0.8154]
[1727207176010,3.77721,2647.5,2647.1,0.8154]
[1727207176941,1.52648514,2647.6,2647.1,0.8154]
[1727207177232,4.56912307,2647.6,2647.1,0.8154]
[1727207177626,3.77715,2647.5,2647.0,3.77778]
[1727207177809,3.77715,2647.5,2647.0,7.55556]
[1727207178006,3.77715,2647.5,2647.0,7.6311094]
[1727207178242,0.79210307,2647.6,2647.2,3.77754]
[1727207178410,0.79210307,2647.6,2647.1,0.8154]
[1727207178411,4.35274977,2647.6,2647.1,4.593]
[1727207178611,3.77703,2647.6,2647.1,4.593]
[1727207178826,4.56904307,2647.7,2647.1,4.593]
[1727207179011,0.79210307,2647.7,2647.3,3.77732]
[1727207179619,0.79210307,2647.6,2647.3,3.77732]
[1727207179953,0.79210307,2647.7,2647.3,3.77732]
[1727207180248,0.79210307,2647.6,2647.3,3.77732]
[1727207180459,0.79210307,2647.7,2647.3,3.77732]
[1727207180814,0.79210307,2647.7,2647.4,3.77728]
[1727207181862,3.7768,2647.8,2647.4,3.77728]
[1727207182058,3.7768,2647.8,2647.5,0.09577724]
[1727207183150,3.77654,2648.0,2647.5,3.87289724]
[1727207183350,3.77618,2648.2,2647.6,3.77698]
[1727207183658,6.77632,2648.1,2647.6,3.87271926]
[1727207183826,3.77651,2648.0,2647.6,0.09573926]
[1727207184023,3.77651,2648.0,2647.6,3.87272926]
[1727207184227,3.77657,2647.9,2647.6,0.09573926]
[1727207184533,0.79065374,2647.8,2647.6,0.09573926]
[1727207186575,0.79065374,2648.0,2647.7,4.59226]
[1727207186733,0.79065374,2648.0,2647.7,4.68662796]
[1727207187248,0.79065374,2648.0,2647.7,0.90976796]
[1727207187458,0.79065374,2647.9,2647.7,0.90976796]
[1727207187766,0.79065374,2648.0,2647.7,0.90976796]
[1727207187971,0.79065374,2648.0,2647.7,0.8154]
[1727207188331,0.79065374,2647.9,2647.8,0.09421624]
[1727207188555,0.79065374,2648.0,2647.7,0.8154]
[1727207188760,0.79065374,2648.0,2647.8,0.09421624]
[1727207188945,0.79065374,2648.0,2647.7,0.8154]
[1727207189263,4.96228061,2648.1,2647.8,0.09421624]
[1727207189428,0.79075177,2648.0,2647.7,0.8154]
[1727207189630,0.79075177,2648.0,2647.8,0.09421624]
[1727207189941,0.79075177,2648.0,2647.7,0.8154]
[1727207190140,0.79075177,2648.0,2647.9,0.09417827]
[1727207190344,0.7908529,2648.0,2647.7,4.59224]
[1727207190668,0.7908529,2648.0,2647.9,0.09417827]
[1727207191203,1.18598061,2648.0,2647.7,4.59224]
[1727207191372,0.79101436,2647.9,2647.7,5.429176]
[1727207191711,0.79101436,2647.9,2647.6,3.77699]
[1727207192003,4.56760436,2647.9,2647.5,4.59254]
[1727207193067,0.79101436,2647.8,2647.5,0.8154]
[1727207193402,4.56773436,2647.8,2647.5,0.8154]
[1727207193704,4.56774436,2647.8,2647.5,0.8154]
[1727207193868,3.77698,2647.7,2647.1,4.59301]
[1727207194267,0.79101436,2647.7,2647.1,0.8154]
[1727207194500,0.79101436,2647.7,2647.3,3.77742]
[1727207194703,4.56791436,2647.7,2647.2,3.77747]
[1727207194905,4.56791436,2647.7,2647.3,4.23671]
[1727207195967,0.79101436,2647.7,2647.3,0.45929]
[1727207196193,4.56776436,2647.8,2647.3,4.23661]
[1727207196405,0.79101436,2647.7,2647.3,4.23661]
[1727207196973,0.79101436,2647.7,2647.4,0.0942117]
[1727207197506,0.79101436,2647.8,2647.5,0.8036]
[1727207197807,0.79101436,2647.8,2647.5,0.89777372]
[1727207199495,0.79101436,2647.8,2647.5,4.67490372]
[1727207200629,0.79101436,2647.9,2647.5,0.89777372]
[1727207200931,0.79101436,2647.8,2647.6,7.55385]
[1727207201091,0.79101436,2647.9,2647.6,7.64796205]
[1727207201292,0.79101436,2647.8,2647.7,3.77686]
[1727207201527,0.79101436,2647.8,2647.7,3.87093408]
[1727207201847,0.79101436,2647.9,2647.7,4.93743733]
[1727207201994,1.18598061,2648.0,2647.8,4.58032]
[1727207201995,0.79101436,2648.0,2647.8,4.58032]
[1727207202196,0.79101436,2648.0,2647.8,4.67435612]
[1727207202406,0.79101436,2648.0,2647.8,5.77062462]
[1727207203232,0.79101436,2648.1,2647.9,3.77657]
[1727207203620,0.79101436,2648.2,2648.0,0.09397916]
[1727207203994,1.18598061,2648.3,2648.0,0.09397916]
[1727207203995,0.79101436,2648.1,2648.0,0.09397916]
[1727207204492,0.79101436,2648.2,2648.0,0.09397916]
[1727207205808,0.79101436,2648.2,2647.9,3.77655]
[1727207206041,0.79101436,2648.2,2648.1,0.0939412]
[1727207206248,0.79101436,2648.2,2648.0,0.09397916]
[1727207206555,0.79101436,2648.2,2648.1,0.0939412]
[1727207206950,0.79101436,2648.2,2647.9,3.77655]
[1727207207152,4.96200061,2648.3,2648.1,3.8702312]
[1727207207153,0.79101436,2648.3,2648.1,3.8702312]
[1727207207372,0.79101436,2648.2,2648.0,0.09397916]
[1727207207573,0.79101436,2648.2,2648.0,0.5241711]
[1727207207778,0.79101436,2648.2,2648.1,0.09379904]
[1727207208483,0.79101436,2648.2,2647.7,0.8036]
[1727207208484,1.18598061,2648.2,2647.7,0.8036]
[1727207208662,1.18598061,2648.2,2648.1,0.09379904]
[1727207208871,1.18598061,2648.2,2647.7,4.58036]
[1727207209174,0.79128485,2648.1,2647.8,4.612436]
[1727207209378,0.79128485,2648.1,2647.8,4.70634892]
[1727207209760,0.79128485,2648.0,2647.8,4.70634892]
[1727207210978,6.54344809,2648.2,2647.9,3.77656]
[1727207210979,0.79128485,2648.1,2647.9,3.77656]
[1727207211151,0.79128485,2648.1,2647.9,3.87043495]
[1727207211338,0.79128485,2648.1,2648.0,0.3839605]
[1727207211774,1.18598061,2648.2,2648.0,0.3839605]
[1727207211775,1.18598061,2648.2,2648.0,4.25422749]
[1727207211990,0.79169327,2648.2,2648.1,6.90569357]
[1727207212153,0.0383912,2648.6,2648.5,4.56502]
[1727207212339,0.0383912,2648.6,2648.5,1.623388]
[1727207212544,0.0383912,2648.6,2648.5,0.88296145]
[1727207212848,0.0383912,2648.6,2648.5,0.09366145]
[1727207213863,0.0383912,2648.6,2648.5,3.86938145]
[1727207214459,0.0383912,2648.6,2648.5,0.09366145]
[1727207214700,0.0383912,2648.6,2648.5,3.86938145]
[1727207214889,0.0383912,2648.6,2648.5,4.7128216]
[1727207216367,0.0383912,2648.6,2648.5,3.86938145]
[1727207216775,0.0383912,2648.6,2648.5,0.09366145]
[1727207217090,0.0383912,2648.6,2648.5,3.77572]
[1727207217300,0.0383912,2648.6,2648.5,3.86898821]
[1727207218659,0.0383912,2648.6,2648.5,0.09326821]
[1727207218894,0.0383912,2648.6,2648.3,0.7893]
[1727207219099,0.0383912,2648.6,2648.4,4.32569116]
[1727207219260,0.0383912,2648.6,2648.4,0.54984116]
[1727207219960,0.0383912,2648.6,2648.4,0.09330616]
[1727207220399,3.8140512,2648.6,2648.1,4.56557]
[1727207220710,4.60574447,2648.6,2648.1,0.7893]
[1727207220914,3.7758,2648.5,2648.1,0.7893]
[1727207221142,3.7758,2648.5,2648.2,0.09338206]
[1727207221447,4.56749327,2648.5,2648.2,0.09338206]
[1727207222014,0.79169327,2648.5,2648.2,0.09338206]
[1727207222239,0.79169327,2648.3,2648.2,0.09338206]
[1727207222444,0.79169327,2648.3,2647.9,7.553]
[1727207222605,0.79169327,2648.5,2648.2,4.65858887]
[1727207222806,0.83008447,2648.6,2648.4,3.77578]
[1727207223044,0.0383912,2648.6,2648.3,6.99848659]
[1727207223345,0.0383912,2648.6,2648.4,0.09314507]
[1727207223504,0.0383912,2648.6,2648.4,3.86892507]
[1727207223706,0.0383912,2648.6,2648.5,3.77572]
[1727207223909,0.0383912,2648.6,2648.5,9.0181424]
[1727207224201,0.0383912,2648.6,2648.5,8.94263676]
[1727207235750,0.0383912,2648.6,2648.5,11.94263676]
[1727207240550,0.0383912,2648.6,2648.5,8.02393319]
[1727207240863,0.0383912,2648.6,2648.5,11.15333676]
[1727207242838,0.0383912,2648.6,2648.5,8.15333676]
[1727207243273,0.0383912,2648.6,2648.5,5.02393319]
[1727207243771,0.0383912,2648.6,2648.5,3.86882713]
[1727207249495,0.0383912,2648.6,2648.5,0.09310713]
[1727207249652,0.0383912,2648.6,2648.5,3.86882713]
[1727207250457,0.0383912,2648.6,2648.5,0.09310713]
[1727207250654,3.8139612,2648.6,2648.5,0.09310713]
[1727207250883,5.44376492,2648.6,2648.1,3.77626]
[1727207251188,5.4431858,2648.6,2648.2,3.77612]
[1727207251374,0.82950535,2648.6,2648.2,3.86864168]
[1727207251783,0.0383912,2648.6,2648.3,3.7759]
[1727207252171,0.0383912,2648.6,2648.4,0.08932204]
[1727207252893,0.82950535,2648.6,2648.4,0.08932204]
[1727207253103,0.0383912,2648.6,2648.4,3.86516204]
[1727207253258,0.0383912,2648.6,2648.4,3.77584]
[1727207253453,0.0383912,2648.6,2648.5,0.0892841]
[1727207253792,0.82950535,2648.6,2648.5,0.0892841]
[1727207255200,0.0383912,2648.6,2648.5,0.0892841]
[1727207256400,0.0383912,2648.6,2648.5,3.8650041]
[1727207258900,0.0383912,2648.6,2648.5,7.82150767]
[1727207259289,0.0383912,2648.6,2648.5,7.89701244]
[1727207259770,0.0383912,2648.6,2648.5,7.82150767]
[1727207259960,0.0383912,2648.6,2648.5,3.8650041]
[1727207260160,0.0383912,2648.6,2648.5,0.0892841]
[1727207261500,0.0383912,2648.6,2648.4,3.77579]
[1727207261666,0.0383912,2648.6,2648.5,0.08926043]
[1727207263165,0.0383912,2648.6,2648.3,3.77592]
[1727207263364,0.0383912,2648.6,2648.5,0.08841333]
[1727207263700,0.0383912,2648.6,2648.4,3.77586]
[1727207263701,0.0383912,2648.6,2648.4,0.08845128]
[1727207263899,0.0383912,2648.6,2648.5,0.08841333]
[1727207264900,0.0383912,2648.6,2648.4,3.77586]
[1727207265103,0.0383912,2648.6,2648.5,0.08841333]
[1727207266866,1.22437181,2648.6,2648.5,0.08841333]
[1727207268517,1.22437181,2648.6,2648.5,3.86413333]
[1727207268802,0.83089891,2648.6,2648.5,5.5996155]
[1727207268987,0.0383912,2648.6,2648.5,5.5996155]
[1727207269189,1.22437181,2648.6,2648.5,0.08841333]
[1727207269567,1.22437181,2648.6,2648.5,3.86413333]
[1727207269784,0.83094389,2648.6,2648.5,0.08841333]
[1727207270012,0.0383912,2648.6,2648.5,0.08841333]
[1727207270703,1.22437181,2648.6,2648.5,0.08841333]
[1727207272420,1.70306769,2648.6,2648.5,0.08841333]
[1727207273009,1.70306769,2648.6,2648.5,0.08840386]
[1727207273579,4.29269708,2648.6,2648.2,3.77605]
[1727207273702,1.22718524,2648.6,2648.5,0.08840386]
[1727207274019,0.0383912,2648.6,2648.5,0.08840386]
[1727207274185,1.22714311,2648.6,2648.2,3.77606]
[1727207274390,0.79250162,2648.4,2648.2,3.77606]
[1727207275327,0.79250162,2648.5,2648.2,3.77606]
[1727207275549,0.79250162,2648.5,2648.3,3.776]
[1727207276791,1.22714311,2648.6,2648.4,3.77586]
[1727207276992,0.79243693,2648.5,2648.4,5.21968833]
[1727207277190,0.79243693,2648.5,2648.4,3.77586]
[1727207279424,0.0383912,2648.6,2648.5,3.77572]
[1727207279835,0.83092931,2648.6,2648.5,4.60907]
[1727207280135,0.0383912,2648.6,2648.5,4.60907]
[1727207283542,0.0383912,2648.6,2648.5,8.51836622]
[1727207286969,0.0383912,2648.6,2648.5,8.60658071]
[1727207297143,0.0383912,2648.6,2648.5,11.60658071]
[1727207301657,0.0383912,2648.6,2648.5,12.36457467]
[1727207302329,0.0383912,2648.6,2648.5,10.67989068]
[1727207302547,0.0383912,2648.6,2648.5,11.81632084]
[1727207302721,0.0383912,2648.6,2648.5,12.36632084]
[1727207303068,0.0383912,2649.4,2649.3,3.77458]
[1727207303225,0.0383912,2649.4,2649.3,5.21739223]
[1727207303424,0.0383912,2649.4,2649.3,5.37772489]
[1727207303647,0.0383912,2649.4,2649.3,5.3022423]
[1727207303850,0.0383912,2649.4,2649.3,5.37772491]
[1727207304065,0.0383912,2649.4,2649.3,6.3727574]
[1727207304570,0.0383912,2649.4,2649.3,6.29727479]
[1727207304775,0.79253811,2649.9,2649.3,10.64517479]
[1727207304940,0.0383912,2650.2,2650.1,3.77344]
[1727207305141,0.0383912,2650.2,2650.1,6.05074223]
[1727207305375,0.0383912,2650.2,2650.1,3.85771298]
[1727207305528,0.0383912,2650.2,2650.1,0.08427298]